bitfinex/quotes_SOLUSD_20240809
["timestamp","ask_amount","ask_price","bid_price","bid_amount"]
[1723190364190,18.47,158.07,158.03,15.8195]
[1723190364381,18.47,158.07,158.06,6.3267]
[1723190365705,18.47,158.09,158.08,6.3258]
[1723190366171,18.47,158.09,158.03,9.49903075]
[1723190366374,18.47,158.09,158.04,6.3271]
[1723190366375,6.3256,158.09,158.04,6.3271]
[1723190366575,6.325,158.11,158.04,15.818]
[1723190366881,18.47,158.08,158.05,45.0]
[1723190367081,18.47,158.07,158.05,45.0]
[1723190367379,18.47,158.07,158.04,15.818]
[1723190367589,18.47,158.07,158.06,6.3265]
[1723190367778,18.47,158.07,158.04,22.1451]
[1723190367978,18.47,158.06,158.04,22.1451]
[1723190368194,18.47,158.06,158.05,6.3271]
[1723190368393,18.47,158.07,158.06,6.3267]
[1723190369086,18.47,158.08,158.07,6.3263]
[1723190369281,18.47,158.09,158.08,6.3258]
[1723190370284,18.47,158.1,158.09,6.3254]
[1723190370491,18.47,158.11,158.09,6.3254]
[1723190370678,33.7934,158.12,158.1,6.3251]
[1723190370879,33.7934,158.12,158.11,6.3247]
[1723190372680,19.2982147,158.13,158.11,6.3247]
[1723190373082,0.8282147,158.13,158.12,6.3243]
[1723190375480,19.2982147,158.13,158.12,6.3243]
[1723190375882,0.8282147,158.13,158.12,6.3243]
[1723190378511,0.8282147,158.13,158.12,69.7943]
[1723190379806,0.8282147,158.13,158.12,71.05866675]
[1723190380397,0.8282147,158.13,158.12,69.7943]
[1723190380706,0.8282147,158.13,158.12,89.7943]
[1723190381101,0.8282147,158.13,158.12,71.3243]
[1723190381694,0.8282147,158.13,158.12,51.3243]
[1723190384122,19.2982147,158.13,158.12,6.3243]
[1723190390311,0.8282147,158.13,158.12,6.3243]
[1723190392524,19.2982147,158.13,158.12,6.3243]
[1723190393911,0.8282147,158.13,158.12,6.3243]
[1723190398830,0.8282147,158.13,158.12,51.3243]
[1723190399213,0.8282147,158.13,158.12,69.7943]
[1723190402610,0.8282147,158.13,158.12,6.3243]
[1723190405136,0.8282147,158.13,158.12,51.3243]
[1723190405710,0.8282147,158.13,158.12,69.7943]
[1723190407234,0.8282147,158.13,158.12,89.7943]
[1723190407440,0.8282147,158.13,158.12,99.28965806]
[1723190407816,0.8282147,158.13,158.12,80.81965806]
[1723190408147,0.8282147,158.13,158.12,99.28965806]
[1723190408733,0.8282147,158.13,158.12,89.7943]
[1723190408939,0.8282147,158.13,158.12,99.28232883]
[1723190409245,0.8282147,158.13,158.12,80.81232883]
[1723190410332,0.8282147,158.13,158.12,71.3243]
[1723190410845,0.8282147,158.13,158.12,26.3243]
[1723190411148,0.8282147,158.13,158.12,99.28240298]
[1723190411517,0.8282147,158.13,158.12,80.81240298]
[1723190412328,0.8282147,158.13,158.12,99.28240298]
[1723190413137,0.8282147,158.13,158.12,89.7943]
[1723190417556,0.8282147,158.13,158.12,91.05882232]
[1723190417746,0.8282147,158.13,158.12,89.7943]
[1723190418054,1.47e-05,158.13,158.12,91.05881551]
[1723190418224,1.47e-05,158.13,158.12,89.7943]
[1723190418645,1.47e-05,158.13,158.12,26.3243]
[1723190418845,1.47e-05,158.13,158.12,46.05880084]
[1723190419250,1.47e-05,158.13,158.12,27.58880084]
[1723190419438,1.47e-05,158.13,158.12,44.7943]
[1723190420743,1.47e-05,158.13,158.12,89.7943]
[1723190422049,1.47e-05,158.13,158.12,44.7943]
[1723190422645,1.47e-05,158.13,158.12,46.05875514]
[1723190423363,1.47e-05,158.13,158.12,91.05875514]
[1723190423562,1.47e-05,158.13,158.12,89.7943]
[1723190423930,1.47e-05,158.13,158.12,91.05877148]
[1723190424147,24.945,158.21,158.2,22.1238]
[1723190427069,15.0475,158.23,158.22,6.3203]
[1723190427252,15.0475,158.23,158.22,51.3203]
[1723190429146,6.1774,158.26,158.25,6.3191]
[1723190429335,24.6474,158.26,158.25,6.3191]
[1723190431643,6.1774,158.26,158.25,6.3191]
[1723190432768,33.771,158.27,158.26,6.3187]
[1723190432769,15.301,158.27,158.26,6.3187]
[1723190432950,33.771,158.27,158.26,6.3187]
[1723190433563,15.301,158.27,158.26,6.3187]
[1723190433761,6.3618,158.3,158.27,15.7957]
[1723190433954,18.47,158.31,158.28,6.3179]
[1723190434566,19.2982147,158.29,158.27,22.1139]
[1723190434745,18.47,158.28,158.27,22.1139]
[1723190435565,19.2982147,158.29,158.28,6.3179]
[1723190435745,19.2982147,158.29,158.27,22.1139]
[1723190435947,18.47,158.28,158.27,22.1139]
[1723190436372,0.8282147,158.29,158.27,22.1139]
[1723190436667,0.8282147,158.29,158.28,6.3179]
[1723190437144,19.2982147,158.29,158.28,6.3179]
[1723190438944,19.2982147,158.29,158.27,15.7957]
[1723190439145,18.47,158.28,158.26,6.3185]
[1723190439369,18.47,158.27,158.26,6.3185]
[1723190439755,18.47,158.28,158.27,6.3181]
[1723190440166,18.47,158.28,158.26,6.3186]
[1723190440459,18.47,158.27,158.26,6.3186]
[1723190441260,0.8282147,158.29,158.26,6.3186]
[1723190441261,18.47,158.28,158.27,6.3182]
[1723190441754,0.8282147,158.29,158.28,6.3179]
[1723190443568,0.8282147,158.29,158.28,51.3179]
[1723190444471,0.8282147,158.29,158.28,69.7879]
[1723190446677,0.8282147,158.29,158.28,51.3179]
[1723190448257,0.8282147,158.29,158.28,69.7879]
[1723190450972,15.0154,158.4,158.36,6.3146]
[1723190451154,15.0154,158.4,158.35,15.7876]
[1723190451155,18.47,158.38,158.37,6.3143]
[1723190451659,18.47,158.39,158.38,6.3137]
[1723190452370,33.4854,158.4,158.39,6.3135]
[1723190452555,33.4854,158.4,158.37,15.7852]
[1723190452752,15.0154,158.4,158.34,15.7884]
[1723190452953,15.0154,158.4,158.37,6.3141]
[1723190453266,18.47,158.39,158.38,6.3139]
[1723190453580,15.0154,158.4,158.39,22.0973]
[1723190453748,33.4854,158.4,158.39,15.7838]
[1723190455254,33.4854,158.4,158.39,22.0973]
[1723190456166,15.0154,158.4,158.39,22.0973]
[1723190456363,18.47,158.41,158.39,15.7838]
[1723190456578,16.1899,158.44,158.41,6.3126]
[1723190456579,18.47,158.42,158.41,6.3126]
[1723190456752,18.47,158.42,158.4,6.313]
[1723190456954,18.47,158.41,158.39,22.0972]
[1723190457259,18.47,158.41,158.4,6.313]
[1723190457462,18.47,158.41,158.39,22.0972]
[1723190457664,18.47,158.4,158.39,15.7838]
[1723190458764,18.47,158.4,158.39,22.0973]
[1723190461395,18.47,158.4,158.36,15.7865]
[1723190461571,16.1899,158.44,158.36,15.7865]
[1723190461770,18.47,158.38,158.37,6.3143]
[1723190462487,18.47,158.38,158.36,22.1011]
[1723190462666,18.47,158.37,158.36,22.1011]
[1723190463096,18.47,158.39,158.36,15.7865]
[1723190463276,18.47,158.4,158.39,6.3132]
[1723190464674,18.47,158.4,158.38,22.0979]
[1723190465094,18.47,158.4,158.37,45.0]
[1723190465095,18.47,158.39,158.36,6.3146]
[1723190465404,18.47,158.37,158.36,6.3147]
[1723190465685,18.47,158.37,158.36,22.1008]
[1723190465891,15.853,158.38,158.37,6.3143]
[1723190466086,34.323,158.38,158.37,6.3143]
[1723190466284,15.853,158.38,158.36,22.1007]
[1723190466503,15.853,158.38,158.37,6.3143]
[1723190466794,34.323,158.38,158.37,6.3143]
[1723190466987,34.323,158.38,158.36,15.7861]
[1723190467191,18.47,158.37,158.36,22.1008]
[1723190467385,18.47,158.37,158.36,67.1008]
[1723190468176,18.47,158.38,158.37,6.3141]
[1723190468580,18.47,158.38,158.36,22.1007]
[1723190468770,6.4493,158.4,158.36,22.1007]
[1723190468771,18.47,158.37,158.36,22.1007]
[1723190468972,6.4493,158.4,158.37,6.3141]
[1723190469176,18.47,158.39,158.38,6.3139]
[1723190470503,15.4644,158.41,158.38,6.3139]
[1723190470819,18.47,158.39,158.38,6.3139]
[1723190471480,15.4644,158.41,158.38,6.3139]
[1723190471686,18.47,158.4,158.39,6.3133]
[1723190475010,33.9344,158.41,158.4,6.3131]
[1723190476493,6.0266,158.44,158.4,6.3131]
[1723190476691,18.47,158.41,158.4,6.3131]
[1723190476994,18.47,158.43,158.41,6.3124]
[1723190478489,15.9409147,158.45,158.4,15.7823]
[1723190478715,18.47,158.44,158.42,6.3119]
[1723190479399,18.47,158.44,158.43,6.3119]
[1723190480313,18.47,158.44,158.42,6.3122]
[1723190480511,18.47,158.43,158.42,6.3122]
[1723190480705,18.47,158.43,158.42,51.3122]
[1723190480890,18.47,158.43,158.41,45.0]
[1723190480891,18.47,158.43,158.41,6.3127]
[1723190481091,18.47,158.42,158.4,22.0953]
[1723190481391,18.47,158.42,158.39,3.0]
[1723190481392,18.47,158.41,158.39,9.3134]
[1723190481593,18.47,158.4,158.39,9.3134]
[1723190481914,15.9409147,158.45,158.41,6.3124]
[1723190482216,18.47,158.42,158.4,22.0951]
[1723190482400,18.47,158.41,158.4,22.0951]
[1723190482807,18.47,158.41,158.4,67.0951]
[1723190483123,18.47,158.42,158.41,6.3127]
[1723190483291,18.47,158.42,158.41,51.3127]
[1723190483699,18.47,158.43,158.42,6.3123]
[1723190483990,15.9409147,158.45,158.42,6.3123]
[1723190483991,18.47,158.44,158.43,6.3116]
[1723190484198,18.47,158.44,158.42,15.7801]
[1723190484398,15.9409147,158.45,158.42,15.7801]
[1723190484610,18.47,158.43,158.41,45.0]
[1723190484920,18.47,158.42,158.4,6.313]
[1723190485105,24.7829,158.41,158.39,3.0]
[1723190485315,18.47,158.4,158.39,3.0]
[1723190485499,18.47,158.4,158.39,9.3135]
[1723190487009,18.47,158.4,158.39,3.0]
[1723190487190,18.47,158.4,158.39,9.3135]
[1723190488916,6.3116,158.44,158.39,3.0]
[1723190489120,18.47,158.4,158.39,9.3132]
[1723190489325,18.47,158.4,158.39,3.0]
[1723190490007,18.47,158.4,158.39,9.3135]
[1723190490394,15.9409147,158.45,158.4,22.0957]
[1723190490395,18.47,158.41,158.4,22.0957]
[1723190490613,15.9409147,158.45,158.41,6.3126]
[1723190491122,15.9409147,158.45,158.42,6.3122]
[1723190491319,15.9409147,158.45,158.4,15.7827]
[1723190491616,18.47,158.41,158.4,22.0957]
[1723190492617,18.47,158.41,158.39,3.0]
[1723190492823,18.47,158.4,158.39,3.0]
[1723190493911,92.35,158.4,158.39,3.0]
[1723190494101,108.2819,158.4,158.39,3.0]
[1723190494728,108.2819,158.4,158.3,25.27361749]
[1723190494907,18.47,158.32,158.31,6.3166]
[1723190495707,18.47,158.34,158.32,15.7908]
[1723190496815,18.47,158.35,158.32,17.05385541]
[1723190497130,18.47,158.34,158.33,6.3155]
[1723190498115,18.47,158.34,158.32,15.7908]
[1723190498312,89.8119,158.4,158.33,6.3159]
[1723190498507,18.47,158.34,158.33,6.3159]
[1723190499102,15.9319,158.4,158.35,6.315]
[1723190499303,6.3136,158.39,158.34,6.3154]
[1723190499720,18.47,158.35,158.34,6.3154]
[1723190499929,18.47,158.35,158.33,6.3159]
[1723190500230,18.47,158.34,158.33,6.3159]
[1723190500406,18.47,158.35,158.34,6.3152]
[1723190500608,18.47,158.35,158.33,6.3157]
[1723190500909,18.47,158.34,158.33,6.3157]
[1723190501126,18.47,158.34,158.32,22.1071]
[1723190501427,18.47,158.34,158.33,6.3159]
[1723190501725,18.47,158.34,158.33,51.3159]
[1723190501922,18.47,158.34,158.33,6.3159]
[1723190502302,89.8119,158.4,158.34,6.3153]
[1723190502303,18.47,158.35,158.34,6.3153]
[1723190502504,18.47,158.35,158.34,51.3153]
[1723190502817,89.8119,158.4,158.35,6.3148]
[1723190502818,22.2451,158.4,158.35,6.3148]
[1723190503123,22.2451,158.4,158.36,1.2628359]
[1723190503623,18.47,158.37,158.34,60.788]
[1723190503816,18.47,158.36,158.34,67.1031]
[1723190504008,18.47,158.36,158.35,6.3151]
[1723190504205,18.47,158.36,158.35,51.3151]
[1723190504510,22.245,158.4,158.35,51.3151]
[1723190504827,18.47,158.37,158.35,51.3151]
[1723190505032,18.47,158.36,158.34,15.788]
[1723190505233,18.47,158.36,158.31,9.48338985]
[1723190505234,18.47,158.35,158.32,6.3163]
[1723190505436,6.3144,158.37,158.32,6.3163]
[1723190506827,18.47,158.34,158.32,6.3163]
[1723190507033,18.47,158.34,158.33,6.3159]
[1723190507530,6.3135,158.39,158.34,6.3154]
[1723190507731,18.47,158.35,158.34,6.3154]
[1723190508331,18.47,158.35,158.34,51.3154]
[1723190508539,18.47,158.35,158.33,22.1056]
[1723190508728,18.47,158.34,158.33,22.1056]
[1723190509032,6.3159,158.33,158.3,15.7925]
[1723190509241,18.47,158.31,158.3,22.1095]
[1723190509430,18.47,158.31,158.28,6.3178]
[1723190509631,21.6422,158.33,158.28,6.3178]
[1723190509925,18.47,158.29,158.28,6.3178]
[1723190511312,18.47,158.29,158.27,22.1134]
[1723190511565,18.47,158.28,158.27,22.1134]
[1723190511763,18.47,158.28,158.23,27.95392477]
[1723190511764,18.47,158.28,158.23,9.48392477]
[1723190511913,18.47,158.28,158.18,18.47]
[1723190511914,6.3201,158.23,158.21,9.48792052]
[1723190512111,18.47,158.22,158.18,18.47]
[1723190512415,18.47,158.19,158.17,22.1268]
[1723190512622,18.47,158.18,158.17,22.1268]
[1723190513019,18.47,158.18,158.14,25.29662052]
[1723190513227,15.5767,158.19,158.14,22.1322]
[1723190513228,18.47,158.15,158.14,22.1322]
[1723190513440,15.5767,158.19,158.14,15.8087]
[1723190513625,15.5767,158.19,158.16,6.3227]
[1723190513626,18.47,158.17,158.16,6.3227]
[1723190513942,15.5767,158.19,158.18,6.3219]
[1723190514141,26.89,158.2,158.18,6.3219]
[1723190514626,26.89,158.19,158.16,15.8059]
[1723190514932,26.89,158.17,158.16,15.8059]
[1723190515240,26.89,158.17,158.12,15.8107]
[1723190515458,26.89,158.15,158.14,6.3231]
[1723190516850,26.89,158.15,158.12,15.8107]
[1723190517347,26.89,158.15,158.14,6.3235]
[1723190518432,26.89,158.17,158.14,15.8079]
[1723190519634,26.89,158.17,158.16,6.3227]
[1723190520634,26.89,158.18,158.16,6.3227]
[1723190521467,26.89,158.18,158.17,6.3223]
[1723190521661,26.89,158.2,158.18,6.3215]
[1723190522143,21.8967,158.23,158.16,15.8058]
[1723190522144,26.89,158.19,158.16,15.8058]
[1723190522325,26.89,158.18,158.16,15.8058]
[1723190522533,26.89,158.17,158.15,6.3229]
[1723190522932,26.89,158.17,158.16,6.3227]
[1723190523455,26.89,158.17,158.15,6.323]
[1723190523642,26.89,158.17,158.13,22.1331]
[1723190523838,33.2629,158.24,158.1,33.48441371]
[1723190523839,48.9738,158.14,158.1,15.8126]
[1723190524041,26.89,158.12,158.1,15.8126]
[1723190524361,26.89,158.12,158.1,22.1373]
[1723190524654,26.89,158.12,158.1,15.8126]
[1723190525158,26.89,158.12,158.08,6.3257]
[1723190525342,26.89,158.1,158.09,6.3255]
[1723190525662,26.89,158.1,158.07,22.1417]
[1723190525838,26.89,158.1,158.08,6.3258]
[1723190527736,26.89,158.1,158.07,15.8155]
[1723190527937,26.89,158.08,158.07,15.8155]
[1723190528160,26.89,158.08,158.06,6.3263]
[1723190528364,26.89,158.08,158.07,6.3263]
[1723190528550,26.89,158.1,158.07,6.3263]
[1723190528740,26.89,158.1,158.08,15.8139]
[1723190529050,26.89,158.1,158.09,6.3255]
[1723190529449,26.89,158.12,158.09,6.3255]
[1723190529948,26.89,158.12,158.1,6.325]
[1723190530463,26.89,158.12,158.08,15.8139]
[1723190530464,26.89,158.12,158.09,6.3254]
[1723190530762,26.89,158.12,158.08,22.1398]
[1723190531136,26.89,158.1,158.08,22.1398]
[1723190532148,26.89,158.1,158.08,15.8139]
[1723190532351,26.89,158.1,158.06,6.3263]
[1723190532575,26.89,158.1,158.05,15.8174]
[1723190533562,26.89,158.1,158.07,6.3262]
[1723190533764,18.46,158.09,158.07,6.3262]
[1723190533964,22.0838,158.14,158.07,15.8148]
[1723190534173,18.46,158.11,158.08,45.0]
[1723190534462,18.46,158.09,158.07,15.8148]
[1723190534660,18.46,158.08,158.07,15.8148]
[1723190535068,18.46,158.08,158.07,22.141]
[1723190535360,18.46,158.08,158.06,6.3266]
[1723190535572,18.46,158.07,158.06,6.3266]
[1723190536155,18.46,158.08,158.07,6.3262]
[1723190536965,18.46,158.08,158.06,6.3266]
[1723190537162,18.46,158.07,158.06,6.3266]
[1723190537372,18.46,158.07,158.05,6.327]
[1723190537665,18.46,158.06,158.05,6.327]
[1723190538264,18.46,158.06,158.04,15.8185]
[1723190539554,18.46,158.07,158.06,6.3264]
[1723190540743,18.46,158.08,158.07,6.3261]
[1723190541268,18.46,158.08,158.07,6.3263]
[1723190541582,18.46,158.08,158.06,6.3266]
[1723190541772,18.46,158.07,158.05,6.327]
[1723190541965,18.46,158.06,158.05,6.327]
[1723190543065,18.46,158.06,158.04,15.8185]
[1723190543265,15.8695,158.07,158.01,15.8213]
[1723190543266,21.8985,158.07,158.01,15.8213]
[1723190543459,18.46,158.02,158.01,15.8213]
[1723190544160,18.46,158.02,158.01,22.1499]
[1723190545170,21.8985,158.07,157.93,32.9239692]
[1723190545585,21.8985,158.07,157.94,6.59210892]
[1723190545752,6.3267,158.06,158.02,6.3283]
[1723190545956,28.2248,158.07,158.02,6.3283]
[1723190546190,18.46,158.05,158.04,6.3275]
[1723190546363,18.46,158.06,158.04,6.3275]
[1723190546683,21.8985,158.07,158.04,6.3275]
[1723190547485,21.8985,158.07,158.02,15.82]
[1723190547686,21.8985,158.07,158.04,6.3273]
[1723190547864,21.8985,158.07,158.03,6.3278]
[1723190548180,28.2249,158.07,158.03,6.3278]
[1723190548380,28.2249,158.07,158.02,22.1482]
[1723190548581,18.46,158.06,158.02,22.1482]
[1723190548959,18.46,158.06,158.02,15.82]
[1723190549274,34.3295,158.07,158.04,15.8178]
[1723190549673,18.46,158.06,158.04,22.1453]
[1723190550164,15.8695,158.07,158.05,6.3271]
[1723190550366,15.8695,158.07,158.06,6.3267]
[1723190550691,18.46,158.09,158.06,6.3267]
[1723190550983,22.483,158.11,158.04,34.2778]
[1723190550984,18.46,158.08,158.05,6.3268]
[1723190551188,18.46,158.07,158.05,6.3268]
[1723190551488,22.483,158.11,158.05,6.3268]
[1723190551489,18.46,158.08,158.05,6.3268]
[1723190551784,18.46,158.07,158.04,15.8178]
[1723190551985,18.46,158.06,158.03,6.3276]
[1723190552360,18.46,158.06,158.04,6.3273]
[1723190552577,6.3256,158.09,158.04,6.3274]
[1723190552770,18.46,158.07,158.04,6.3274]
[1723190553283,18.46,158.07,158.05,6.327]
[1723190553485,18.46,158.08,158.06,6.3264]
[1723190553886,18.46,158.09,158.06,6.3264]
[1723190554409,22.483,158.11,158.06,18.46]
[1723190554584,22.483,158.11,158.09,15.8128]
[1723190554784,18.46,158.1,158.07,6.3262]
[1723190554992,18.46,158.1,158.06,22.1432]
[1723190555191,22.483,158.11,158.1,6.3251]
[1723190555495,15.9511,158.15,158.1,18.46]
[1723190555706,34.4111,158.15,158.1,24.7847]
[1723190555993,18.46,158.13,158.1,6.3247]
[1723190556197,18.46,158.12,158.07,18.46]
[1723190556376,18.46,158.12,158.08,6.3258]
[1723190556796,18.46,158.12,158.09,6.3253]
[1723190557698,26.91,158.14,158.1,6.3249]
[1723190557879,26.91,158.14,158.12,6.3242]
[1723190558087,15.9511,158.15,158.12,15.8103]
[1723190558286,26.91,158.18,158.15,6.3229]
[1723190558471,15.2086,158.19,158.13,26.91]
[1723190558806,26.91,158.22,158.18,6.3219]
[1723190559176,26.91,158.22,158.17,22.1279]
[1723190559375,33.2304,158.22,158.17,22.1279]
[1723190561205,15.2086,158.23,158.17,15.8057]
[1723190561791,15.2086,158.23,158.21,6.3207]
[1723190562186,15.2086,158.23,158.19,22.124]
[1723190562387,15.2086,158.23,158.2,6.3211]
[1723190562808,15.2086,158.23,158.19,15.8029]
[1723190563107,21.5285,158.23,158.19,15.8029]
[1723190563312,15.2086,158.23,158.19,22.1243]
[1723190564411,15.2086,158.23,158.2,6.321]
[1723190564583,15.2086,158.23,158.19,22.1243]
[1723190564883,15.2086,158.23,158.19,15.8029]
[1723190565805,26.91,158.22,158.19,15.8029]
[1723190566098,26.91,158.22,158.18,6.3215]
[1723190566520,33.2303,158.22,158.17,6.3222]
[1723190568614,26.91,158.22,158.18,6.3217]
[1723190568984,26.91,158.22,158.18,15.8039]
[1723190569205,26.91,158.22,158.13,31.6179]
[1723190569206,15.2086,158.23,158.22,6.3203]
[1723190569509,26.91,158.26,158.2,15.8019]
[1723190571012,26.91,158.24,158.2,15.8019]
[1723190571312,26.91,158.21,158.17,15.8054]
[1723190571510,26.91,158.21,158.17,22.1276]
[1723190571511,15.0567,158.2,158.17,22.1276]
[1723190571914,15.0567,158.2,158.17,15.8054]
[1723190572120,41.9667,158.2,158.17,15.8054]
[1723190572291,15.0567,158.2,158.18,6.3218]
[1723190573718,15.0567,158.2,158.17,22.1276]
[1723190574018,41.9667,158.2,158.17,15.8054]
[1723190574221,26.91,158.19,158.17,15.8054]
[1723190574520,41.9667,158.2,158.17,15.8054]
[1723190575820,26.91,158.19,158.17,15.8054]
[1723190576115,26.91,158.19,158.17,22.1276]
[1723190576295,26.91,158.19,158.17,15.8054]
[1723190578019,26.91,158.19,158.16,6.3226]
[1723190579133,26.91,158.19,158.15,6.323]
[1723190579525,26.91,158.17,158.14,22.1317]
[1723190580622,26.91,158.17,158.15,6.3229]
[1723190580828,26.91,158.18,158.16,15.8063]
[1723190581325,26.91,158.18,158.15,6.323]
[1723190581803,26.91,158.18,158.13,22.1328]
[1723190582115,26.91,158.17,158.13,15.8093]
[1723190582321,26.91,158.17,158.14,6.3234]
[1723190582621,26.91,158.16,158.13,15.8093]
[1723190582815,26.91,158.16,158.13,22.1331]
[1723190584329,26.91,158.15,158.09,31.6262]
[1723190584503,26.91,158.13,158.1,15.8123]
[1723190584704,26.91,158.11,158.1,15.8123]
[1723190585230,26.91,158.12,158.1,15.8123]
[1723190585733,26.91,158.12,158.1,22.1373]
[1723190586109,42.4795,158.13,158.11,6.3247]
[1723190586432,26.91,158.15,158.1,15.8123]
[1723190587398,26.91,158.15,158.12,6.3242]
[1723190588104,26.91,158.15,158.11,6.3245]
[1723190589039,33.2331,158.15,158.11,6.3245]
[1723190589525,6.3236,158.14,158.1,15.8123]
[1723190589710,26.91,158.13,158.1,15.8123]
[1723190589909,26.91,158.11,158.07,15.8155]
[1723190590130,26.91,158.1,158.07,15.8155]
[1723190590303,26.91,158.09,158.07,15.8155]
[1723190590502,26.91,158.1,158.07,15.8155]
[1723190590707,15.9915,158.11,158.08,6.3259]
[1723190591020,26.91,158.12,158.09,6.3253]
[1723190591338,26.91,158.14,158.11,6.3247]
[1723190591513,15.9125,158.15,158.11,15.8112]
[1723190591712,15.9125,158.15,158.13,15.8091]
[1723190591932,26.91,158.16,158.14,6.3235]
[1723190592131,26.91,158.16,158.09,26.91]
[1723190592132,33.2327,158.16,158.12,6.3242]
[1723190592310,33.2327,158.16,158.11,6.3246]
[1723190592311,6.3231,158.15,158.11,6.3246]
[1723190592943,33.2327,158.16,158.11,6.3246]
[1723190593318,26.91,158.14,158.11,6.3246]
[1723190593520,26.91,158.14,158.1,22.1373]
[1723190593745,26.91,158.14,158.1,15.8123]
[1723190593914,26.91,158.12,158.08,6.3255]
[1723190594113,26.91,158.12,158.09,6.3254]
[1723190594606,26.91,158.12,158.08,6.3258]
[1723190594811,26.91,158.1,158.07,22.1414]
[1723190595032,26.91,158.1,158.08,6.3259]
[1723190595356,26.91,158.11,158.08,6.3259]
[1723190595935,26.91,158.1,158.04,15.8187]
[1723190596133,26.91,158.09,158.04,15.8187]
[1723190596807,26.91,158.08,158.06,6.3266]
[1723190598218,26.91,158.09,158.06,6.3266]
[1723190598427,26.91,158.09,158.07,6.3262]
[1723190598628,26.91,158.08,158.04,15.8187]
[1723190598814,26.91,158.08,158.06,6.3265]
[1723190599232,26.91,158.09,158.06,6.3265]
[1723190599835,26.91,158.1,158.06,15.816]
[1723190600437,26.91,158.1,158.07,6.3262]
[1723190600635,26.91,158.1,158.08,6.3258]
[1723190601343,26.91,158.1,158.07,6.3262]
[1723190602039,6.3244,158.12,158.06,15.816]
[1723190602040,26.91,158.12,158.06,15.816]
[1723190602213,26.91,158.11,158.07,6.3262]
[1723190602832,26.91,158.11,158.08,6.3258]
[1723190603739,43.3671,158.13,158.1,6.325]
[1723190603947,16.4571,158.13,158.09,15.8136]
[1723190604315,43.3671,158.13,158.09,22.139]
[1723190604522,43.3671,158.13,158.06,58.5426]
[1723190604523,26.91,158.12,158.06,15.8165]
[1723190604733,26.91,158.1,158.06,15.8165]
[1723190605322,26.91,158.09,158.05,6.3267]
[1723190605837,33.2351,158.1,158.05,6.3267]
[1723190606419,33.2351,158.1,158.06,6.3266]
[1723190606729,26.91,158.09,158.05,6.327]
[1723190607420,26.91,158.09,158.03,15.8193]
[1723190607421,26.91,158.09,158.06,6.3265]
[1723190608220,26.91,158.09,158.05,6.327]
[1723190608439,26.91,158.08,158.03,15.8193]
[1723190608645,26.91,158.07,158.03,22.1471]
[1723190608935,26.91,158.06,158.03,15.8193]
[1723190609169,26.91,158.07,158.03,15.8193]
[1723190609318,6.0618,158.12,158.03,26.91]
[1723190609518,32.9718,158.12,158.03,26.91]
[1723190609730,39.2961,158.12,158.07,6.326]